[Event "Open NK Rapid 2025"]
[Site "Helmond, Netherlands"]
[Date "2025.05.03"]
[Round "9.22"]
[White "Nies, Levi"]
[Black "Landman, Renzo"]
[Result "0-1"]
[TimeControl "15+5"]
[WhiteFideId "1061275"]
[BlackFideId "40106306"]
[WhiteElo "1828"]
[BlackElo "1975"]

1. e4 {[%clk 00:15:08]} {[%emt 00:00:02]} e5 {[%clk 00:15:08]} {[%emt
00:00:03]} 2. Nf3 {[%clk 00:15:11]} {[%emt 00:00:02]} Nc6 {[%clk 00:15:10]}
{[%emt 00:00:03]} 3. Bc4 {[%clk 00:15:15]} {[%emt 00:00:02]} Nf6 {[%clk
00:15:12]} {[%emt 00:00:02]} 4. O-O {[%clk 00:15:17]} {[%emt 00:00:02]} Be7
{[%clk 00:13:54]} {[%emt 00:01:24]} 5. Re1 {[%clk 00:14:40]} {[%emt 00:00:42]}
Nxe4 {[%clk 00:13:27]} {[%emt 00:00:32]} 6. Rxe4 {[%clk 00:14:40]} {[%emt
00:00:06]} d5 {[%clk 00:13:29]} {[%emt 00:00:02]} 7. Bxd5 {[%clk 00:14:43]}
{[%emt 00:00:01]} Qxd5 {[%clk 00:13:31]} {[%emt 00:00:03]} 8. Nc3 {[%clk
00:14:47]} Qa5 {[%clk 00:11:51]} {[%emt 00:01:46]} 9. Nxe5 {[%clk 00:10:46]}
{[%emt 00:04:06]} Nxe5 {[%clk 00:11:29]} {[%emt 00:00:26]} 10. Qh5 {[%clk
00:09:33]} {[%emt 00:01:19]} Nc6 {[%clk 00:07:42]} {[%emt 00:03:52]} 11. Nd5
{[%clk 00:09:36]} {[%emt 00:00:01]} Kf8 {[%clk 00:06:53]} {[%emt 00:00:54]} 12.
b4 {[%clk 00:06:04]} {[%emt 00:03:38]} Nxb4 {[%clk 00:05:39]} {[%emt 00:01:19]}
13. Rxe7 {[%clk 00:03:17]} {[%emt 00:02:52]} Qxd5 {[%clk 00:05:40]} {[%emt
00:00:04]} 14. Re5 {[%clk 00:03:20]} {[%emt 00:00:02]} Qd6 {[%clk 00:05:28]}
{[%emt 00:00:16]} 15. Ba3 {[%clk 00:03:18]} {[%emt 00:00:08]} Be6 {[%clk
00:04:01]} {[%emt 00:01:31]} 16. c3 {[%clk 00:02:33]} {[%emt 00:00:51]} Qxd2
{[%clk 00:03:44]} {[%emt 00:00:21]} 17. Bxb4+ {[%clk 00:02:36]} {[%emt
00:00:03]} Kg8 {[%clk 00:03:41]} {[%emt 00:00:08]} 18. Rd1 {[%clk 00:00:55]}
{[%emt 00:01:46]} Qxa2 {[%clk 00:03:26]} {[%emt 00:00:20]} 19. Ra5 {[%clk
00:00:52]} {[%emt 00:00:08]} Qc2 {[%clk 00:02:53]} {[%emt 00:00:38]} 20. Rxa7
{[%clk 00:00:42]} {[%emt 00:00:15]} Re8 {[%clk 00:02:23]} {[%emt 00:00:34]} 21.
Rxb7 {[%clk 00:00:17]} {[%emt 00:00:31]} g6 {[%clk 00:02:23]} {[%emt 00:00:04]}
22. Qf3 {[%clk 00:00:15]} {[%emt 00:00:08]} h5 {[%clk 00:00:34]} {[%emt
00:01:54]} 23. h4 {[%clk 00:00:12]} {[%emt 00:00:08]} Bg4 {[%emt 00:00:19]} 24.
Qf6 {[%clk 00:00:06]} Qxd1+ {[%clk 00:00:24]} {[%emt 00:00:11]} 25. Kh2 {[%clk
00:00:11]} {[%emt 00:00:01]} Qd5 {[%clk 00:00:22]} {[%emt 00:00:07]} 26. Rxc7
{[%clk 00:00:09]} {[%emt 00:00:07]} Qe5+ {[%clk 00:00:26]} 27. Qxe5 {[%clk
00:00:13]} {[%emt 00:00:02]} Rxe5 {[%clk 00:00:29]} 28. c4 {[%clk 00:00:14]}
{[%emt 00:00:04]} Be6 {[%clk 00:00:23]} {[%emt 00:00:09]} 29. Bc3 {[%clk
00:00:18]} {[%emt 00:00:03]} Re4 {[%clk 00:00:22]} {[%emt 00:00:03]} 30. Rb7
{[%clk 00:00:10]} {[%emt 00:00:16]} Rxc4 {[%clk 00:00:17]} {[%emt 00:00:09]} 31.
Bxh8 {[%clk 00:00:14]} {[%emt 00:00:02]} Kxh8 {[%clk 00:00:20]} {[%emt
00:00:02]} 32. g3 {[%clk 00:00:07]} {[%emt 00:00:12]} Kg7 {[%clk 00:00:23]}
{[%emt 00:00:02]} 33. Rb1 {[%clk 00:00:11]} {[%emt 00:00:02]} Rc2 {[%clk
00:00:22]} {[%emt 00:00:05]} 34. Kg1 {[%clk 00:00:15]} {[%emt 00:00:01]} Bg4
{[%clk 00:00:22]} {[%emt 00:00:04]} 35. Kg2 {[%clk 00:00:18]} {[%emt 00:00:03]}
Rc3 {[%clk 00:00:24]} {[%emt 00:00:03]} 36. Re1 {[%clk 00:00:19]} {[%emt
00:00:04]} Bf3+ {[%clk 00:00:25]} {[%emt 00:00:04]} 37. Kg1 {[%clk 00:00:21]}
{[%emt 00:00:03]} Bd5 {[%clk 00:00:25]} {[%emt 00:00:04]} 38. Kh2 {[%clk
00:00:18]} {[%emt 00:00:09]} Kf6 {[%clk 00:00:25]} {[%emt 00:00:04]} 39. Re2
{[%clk 00:00:21]} {[%emt 00:00:02]} Rf3 {[%clk 00:00:22]} {[%emt 00:00:08]} 40.
Rd2 {[%clk 00:00:19]} {[%emt 00:00:09]} Be6 {[%clk 00:00:25]} {[%emt 00:00:01]}
41. Kg2 {[%clk 00:00:21]} {[%emt 00:00:03]} Rf5 {[%clk 00:00:29]} 42. Rd4
{[%clk 00:00:15]} {[%emt 00:00:11]} Rd5 {[%clk 00:00:25]} {[%emt 00:00:09]} 43.
Re4 {[%clk 00:00:15]} {[%emt 00:00:05]} Ra5 {[%clk 00:00:24]} {[%emt 00:00:06]}
44. Rf4+ {[%clk 00:00:16]} {[%emt 00:00:04]} Ke7 {[%clk 00:00:26]} {[%emt
00:00:02]} 45. Kf1 {[%clk 00:00:18]} {[%emt 00:00:03]} Ra1+ {[%clk 00:00:26]}
{[%emt 00:00:06]} 46. Ke2 {[%clk 00:00:23]} {[%emt 00:00:01]} Ra2+ {[%clk
00:00:29]} {[%emt 00:00:01]} 47. Ke3 {[%clk 00:00:27]} Ra3+ {[%clk 00:00:26]}
{[%emt 00:00:08]} 48. Kd2 {[%clk 00:00:31]} {[%emt 00:00:01]} f6 {[%clk
00:00:24]} {[%emt 00:00:06]} 49. Ke2 {[%clk 00:00:23]} {[%emt 00:00:13]} g5
{[%clk 00:00:24]} {[%emt 00:00:05]} 50. hxg5 {[%clk 00:00:24]} {[%emt
00:00:05]} fxg5 {[%clk 00:00:28]} 51. Rd4 {[%clk 00:00:25]} {[%emt 00:00:05]}
Kf6 {[%clk 00:00:29]} {[%emt 00:00:02]} 52. Rd8 {[%clk 00:00:14]} {[%emt
00:00:17]} h4 {[%clk 00:00:29]} {[%emt 00:00:06]} 53. gxh4 {[%clk 00:00:11]}
{[%emt 00:00:08]} gxh4 {[%clk 00:00:32]} 54. Rh8 {[%clk 00:00:12]} {[%emt
00:00:04]} h3 {[%clk 00:00:36]} 55. Kf1 {[%clk 00:00:12]} {[%emt 00:00:05]}
Ra1+ {[%clk 00:00:32]} {[%emt 00:00:09]} 56. Ke2 {[%clk 00:00:16]} {[%emt
00:00:02]} Kg5 {[%clk 00:00:25]} {[%emt 00:00:10]} 57. Kf3 {[%clk 00:00:12]}
{[%emt 00:00:10]} Ra3+ {[%clk 00:00:24]} {[%emt 00:00:05]} 58. Ke2 {[%clk
00:00:11]} {[%emt 00:00:06]} Bg4+ {[%clk 00:00:26]} {[%emt 00:00:03]} 59. Kd2
{[%clk 00:00:08]} {[%emt 00:00:09]} Ra2+ {[%clk 00:00:29]} {[%emt 00:00:02]} 60.
Ke3 {[%clk 00:00:12]} {[%emt 00:00:02]} Re2+ {[%clk 00:00:32]} {[%emt
00:00:01]} 61. Kd3 {[%clk 00:00:14]} {[%emt 00:00:03]} Rxf2 {[%clk 00:00:34]}
{[%emt 00:00:02]} 0-1

[Event "Open NK Rapid 2025"]
[Site "Helmond, Netherlands"]
[Date "2025.05.03"]
[Round "9.23"]
[White "Grochal, Joey"]
[Black "Kriens, Hans"]
[Result "1-0"]
[TimeControl "15+5"]
[WhiteFideId "1019945"]
[BlackFideId "1093665"]
[WhiteElo "2261"]
[BlackElo "1878"]

1. d4 {[%clk 00:15:09]} Nf6 {[%clk 00:15:05]} {[%emt 00:00:05]} 2. c4 {[%clk
00:15:13]} {[%emt 00:00:01]} d5 {[%clk 00:14:56]} {[%emt 00:00:15]} 3. cxd5
{[%clk 00:15:16]} {[%emt 00:00:02]} Nxd5 {[%clk 00:14:19]} {[%emt 00:00:42]} 4.
Nf3 {[%clk 00:15:20]} {[%emt 00:00:01]} e6 {[%clk 00:14:05]} {[%emt 00:00:20]}
5. e4 {[%clk 00:15:22]} {[%emt 00:00:02]} Nb6 {[%clk 00:14:04]} {[%emt
00:00:06]} 6. Nc3 {[%clk 00:15:09]} {[%emt 00:00:19]} c5 {[%clk 00:12:52]}
{[%emt 00:01:16]} 7. Bg5 {[%clk 00:15:07]} {[%emt 00:00:07]} f6 {[%clk
00:10:51]} {[%emt 00:02:06]} 8. Be3 {[%clk 00:15:05]} {[%emt 00:00:07]} cxd4
{[%clk 00:10:35]} {[%emt 00:00:21]} 9. Nxd4 {[%clk 00:15:02]} {[%emt 00:00:08]}
Nc6 {[%clk 00:10:11]} {[%emt 00:00:28]} 10. Bb5 {[%clk 00:14:28]} {[%emt
00:00:40]} Bd7 {[%clk 00:10:09]} {[%emt 00:00:06]} 11. Qb3 {[%clk 00:14:19]}
{[%emt 00:00:15]} Nxd4 {[%clk 00:09:32]} {[%emt 00:00:42]} 12. Bxd4 {[%clk
00:14:21]} {[%emt 00:00:02]} Qe7 {[%clk 00:06:50]} {[%emt 00:02:47]} 13. Rd1
{[%clk 00:14:18]} {[%emt 00:00:09]} Rd8 {[%clk 00:05:25]} {[%emt 00:01:31]} 14.
Bxb6 {[%clk 00:13:54]} {[%emt 00:00:29]} axb6 {[%clk 00:05:25]} {[%emt
00:00:04]} 15. Rxd7 {[%clk 00:13:47]} {[%emt 00:00:12]} Rxd7 {[%clk 00:05:25]}
{[%emt 00:00:05]} 16. O-O {[%clk 00:13:37]} {[%emt 00:00:15]} Kf7 {[%clk
00:05:23]} {[%emt 00:00:07]} 17. Bxd7 {[%clk 00:13:35]} {[%emt 00:00:07]} Qxd7
{[%clk 00:05:27]} {[%emt 00:00:02]} 18. Qxb6 {[%clk 00:13:38]} {[%emt
00:00:02]} Qc6 {[%clk 00:05:26]} {[%emt 00:00:06]} 19. Qd8 {[%clk 00:13:29]}
{[%emt 00:00:12]} Rg8 {[%clk 00:05:20]} {[%emt 00:00:12]} 20. Rd1 {[%clk
00:13:24]} {[%emt 00:00:10]} Be7 {[%clk 00:05:23]} {[%emt 00:00:02]} 21. Qd7
{[%clk 00:13:07]} {[%emt 00:00:21]} Qb6 {[%clk 00:04:57]} {[%emt 00:00:32]} 22.
Qb5 {[%clk 00:13:06]} {[%emt 00:00:06]} Qxb5 {[%clk 00:04:25]} {[%emt
00:00:37]} 23. Nxb5 {[%clk 00:13:09]} Rc8 {[%clk 00:04:27]} {[%emt 00:00:03]}
24. Nc3 {[%clk 00:13:07]} {[%emt 00:00:09]} Ke8 {[%clk 00:04:21]} {[%emt
00:00:10]} 25. Kf1 {[%clk 00:13:07]} {[%emt 00:00:05]} Bc5 {[%clk 00:04:18]}
{[%emt 00:00:08]} 26. Ke2 {[%clk 00:13:06]} {[%emt 00:00:07]} Ke7 {[%clk
00:04:21]} {[%emt 00:00:01]} 27. f3 {[%clk 00:13:05]} {[%emt 00:00:06]} Rb8
{[%clk 00:04:20]} {[%emt 00:00:06]} 28. Nb5 {[%clk 00:13:04]} {[%emt 00:00:06]}
Ra8 {[%clk 00:04:14]} {[%emt 00:00:11]} 29. a3 {[%clk 00:12:49]} {[%emt
00:00:20]} Ra5 {[%clk 00:04:13]} {[%emt 00:00:05]} 30. Nc3 {[%clk 00:12:51]}
{[%emt 00:00:03]} Ra6 {[%clk 00:04:06]} {[%emt 00:00:12]} 31. Kd3 {[%clk
00:12:45]} {[%emt 00:00:11]} Rc6 {[%clk 00:04:05]} {[%emt 00:00:07]} 32. Rc1
{[%clk 00:12:18]} {[%emt 00:00:31]} Bd6 {[%clk 00:03:45]} {[%emt 00:00:26]} 33.
g3 {[%emt 00:00:26]} Be5 {[%clk 00:03:32]} 34. Rc2 {[%clk 00:12:13]} {[%emt
00:00:05]} g5 {[%clk 00:03:07]} {[%emt 00:00:31]} 35. Ne2 {[%clk 00:11:52]}
{[%emt 00:00:26]} Rd6+ {[%clk 00:03:06]} {[%emt 00:00:06]} 36. Ke3 {[%clk
00:11:54]} {[%emt 00:00:02]} Rb6 {[%clk 00:03:03]} {[%emt 00:00:09]} 37. Nd4
{[%clk 00:11:37]} {[%emt 00:00:21]} h5 {[%clk 00:02:51]} {[%emt 00:00:18]} 38.
b4 {[%clk 00:11:28]} {[%emt 00:00:14]} Ra6 {[%clk 00:02:48]} {[%emt 00:00:09]}
39. Rc3 {[%clk 00:10:59]} {[%emt 00:00:33]} h4 {[%clk 00:02:43]} {[%emt
00:00:09]} 40. f4 {[%clk 00:10:58]} {[%emt 00:00:06]} gxf4+ {[%clk 00:01:55]}
{[%emt 00:00:53]} 41. gxf4 {[%clk 00:11:02]} {[%emt 00:00:02]} Bb8 {[%clk
00:01:59]} 42. Nb5 {[%clk 00:10:40]} {[%emt 00:00:26]} e5 {[%clk 00:01:18]}
{[%emt 00:00:46]} 43. f5 {[%clk 00:10:38]} {[%emt 00:00:08]} Rc6 {[%clk
00:01:03]} {[%emt 00:00:20]} 44. h3 {[%clk 00:10:28]} {[%emt 00:00:14]} Ba7+
{[%clk 00:00:43]} {[%emt 00:00:26]} 45. Kd3 {[%clk 00:10:12]} {[%emt 00:00:21]}
Rxc3+ {[%clk 00:00:08]} {[%emt 00:00:41]} 46. Kxc3 {[%clk 00:10:14]} {[%emt
00:00:02]} Bb6 {[%clk 00:00:12]} {[%emt 00:00:01]} 47. Kc4 {[%clk 00:10:16]}
{[%emt 00:00:03]} Kd7 {[%clk 00:00:16]} 48. Kd5 {[%clk 00:10:20]} {[%emt
00:00:01]} 1-0

[Event "Open NK Rapid 2025"]
[Site "Helmond, Netherlands"]
[Date "2025.05.03"]
[Round "9.24"]
[White "Jansen, Marijn"]
[Black "Teianu, Sabin"]
[Result "0-1"]
[TimeControl "15+5"]
[WhiteFideId "1089587"]
[BlackFideId "1095846"]
[WhiteElo "1880"]
[BlackElo "2089"]

1. e4 {[%clk 00:15:09]} e6 {[%clk 00:15:10]} {[%emt 00:00:01]} 2. d4 {[%clk
00:15:08]} {[%emt 00:00:05]} d5 {[%clk 00:15:13]} {[%emt 00:00:02]} 3. exd5
{[%clk 00:15:12]} {[%emt 00:00:02]} exd5 {[%clk 00:15:16]} {[%emt 00:00:01]} 4.
Bd3 {[%clk 00:15:13]} {[%emt 00:00:04]} c5 {[%clk 00:15:20]} 5. Nf3 {[%clk
00:15:09]} {[%emt 00:00:09]} Nc6 {[%clk 00:15:17]} {[%emt 00:00:09]} 6. c3
{[%clk 00:15:12]} Nf6 {[%clk 00:15:18]} {[%emt 00:00:03]} 7. O-O {[%clk
00:15:16]} {[%emt 00:00:02]} Be7 {[%clk 00:15:21]} {[%emt 00:00:02]} 8. Re1
{[%clk 00:15:03]} {[%emt 00:00:18]} O-O {[%clk 00:15:18]} {[%emt 00:00:08]} 9.
h3 {[%clk 00:15:01]} {[%emt 00:00:07]} h6 {[%clk 00:14:56]} {[%emt 00:00:27]}
10. Bf4 {[%clk 00:14:53]} {[%emt 00:00:13]} Be6 {[%clk 00:14:56]} {[%emt
00:00:04]} 11. Nbd2 {[%clk 00:14:32]} {[%emt 00:00:26]} Qb6 {[%clk 00:14:39]}
{[%emt 00:00:23]} 12. Ne5 {[%clk 00:13:42]} {[%emt 00:00:55]} cxd4 {[%clk
00:13:54]} {[%emt 00:00:50]} 13. Ng6 {[%clk 00:13:08]} {[%emt 00:00:39]} Rfe8
{[%clk 00:13:20]} {[%emt 00:00:39]} 14. Nf3 {[%clk 00:12:47]} {[%emt 00:00:26]}
dxc3 {[%clk 00:12:02]} {[%emt 00:01:22]} 15. bxc3 {[%clk 00:12:49]} {[%emt
00:00:03]} Bc5 {[%clk 00:12:02]} {[%emt 00:00:05]} 16. Qd2 {[%clk 00:11:04]}
{[%emt 00:01:51]} Ne4 {[%clk 00:10:24]} {[%emt 00:01:43]} 17. Bxe4 {[%clk
00:09:59]} {[%emt 00:01:10]} dxe4 {[%clk 00:10:26]} {[%emt 00:00:03]} 18. Nfh4
{[%clk 00:10:02]} {[%emt 00:00:02]} fxg6 {[%clk 00:09:51]} {[%emt 00:00:40]} 19.
Bxh6 {[%clk 00:10:06]} Rad8 {[%clk 00:07:21]} {[%emt 00:02:35]} 20. Qg5 {[%clk
00:09:34]} {[%emt 00:00:36]} Bxf2+ {[%clk 00:07:20]} {[%emt 00:00:07]} 21. Kh1
{[%clk 00:09:39]} Bxh4 {[%clk 00:07:21]} {[%emt 00:00:03]} 22. Qxh4 {[%clk
00:09:32]} {[%emt 00:00:12]} gxh6 {[%clk 00:07:14]} {[%emt 00:00:11]} 23. Qxh6
{[%clk 00:09:35]} {[%emt 00:00:02]} Bf7 {[%clk 00:07:02]} {[%emt 00:00:18]} 0-1

[Event "Open NK Rapid 2025"]
[Site "Helmond, Netherlands"]
[Date "2025.05.03"]
[Round "9.25"]
[White "Baars, Tije"]
[Black "Geboers, Jimmy"]
[Result "1-0"]
[TimeControl "15+5"]
[WhiteFideId "40102157"]
[BlackFideId "262919"]
[WhiteElo "1870"]
[BlackElo "2065"]

1. d4 {[%clk 00:15:09]} {[%emt 00:00:01]} Nf6 {[%clk 00:15:07]} {[%emt
00:00:03]} 2. Nc3 {[%clk 00:15:12]} {[%emt 00:00:02]} e6 {[%clk 00:15:10]} 3.
e4 {[%clk 00:15:13]} {[%emt 00:00:05]} d5 {[%clk 00:15:13]} {[%emt 00:00:02]} 4.
exd5 {[%clk 00:15:15]} {[%emt 00:00:03]} Nxd5 {[%clk 00:15:11]} {[%emt
00:00:07]} 5. Nxd5 {[%clk 00:15:16]} {[%emt 00:00:04]} exd5 {[%clk 00:15:12]}
{[%emt 00:00:03]} 6. Nf3 {[%clk 00:15:18]} {[%emt 00:00:03]} Be6 {[%clk
00:15:10]} {[%emt 00:00:07]} 7. Bd3 {[%clk 00:15:19]} {[%emt 00:00:05]} Be7
{[%clk 00:15:06]} {[%emt 00:00:09]} 8. O-O {[%clk 00:15:15]} {[%emt 00:00:08]}
O-O {[%clk 00:15:07]} {[%emt 00:00:04]} 9. c3 {[%clk 00:15:03]} {[%emt
00:00:18]} Nd7 {[%clk 00:15:04]} {[%emt 00:00:09]} 10. h3 {[%clk 00:14:51]}
{[%emt 00:00:16]} c6 {[%clk 00:15:02]} {[%emt 00:00:07]} 11. Bf4 {[%clk
00:14:52]} {[%emt 00:00:04]} Nf6 {[%clk 00:14:43]} {[%emt 00:00:24]} 12. Re1
{[%clk 00:14:42]} {[%emt 00:00:14]} Bd6 {[%clk 00:14:42]} {[%emt 00:00:06]} 13.
Bxd6 {[%clk 00:14:39]} {[%emt 00:00:09]} Qxd6 {[%clk 00:14:44]} {[%emt
00:00:03]} 14. Ne5 {[%clk 00:14:29]} {[%emt 00:00:15]} Rfe8 {[%clk 00:14:32]}
{[%emt 00:00:16]} 15. f4 {[%clk 00:13:29]} {[%emt 00:01:05]} g6 {[%clk
00:13:25]} {[%emt 00:01:12]} 16. g4 {[%clk 00:13:14]} {[%emt 00:00:21]} Bc8
{[%clk 00:13:06]} {[%emt 00:00:23]} 17. Qf3 {[%clk 00:12:32]} {[%emt 00:00:47]}
b6 {[%clk 00:12:57]} {[%emt 00:00:14]} 18. f5 {[%clk 00:12:19]} {[%emt
00:00:19]} Nd7 {[%clk 00:12:47]} {[%emt 00:00:16]} 19. fxg6 {[%clk 00:12:12]}
{[%emt 00:00:12]} Nxe5 {[%clk 00:11:31]} {[%emt 00:01:20]} 20. dxe5 {[%clk
00:11:56]} {[%emt 00:00:21]} Qc5+ {[%clk 00:11:19]} {[%emt 00:00:17]} 21. Kg2
{[%clk 00:11:10]} {[%emt 00:00:52]} fxg6 {[%clk 00:11:21]} {[%emt 00:00:02]} 22.
b4 {[%clk 00:05:38]} {[%emt 00:05:38]} Qxc3 {[%clk 00:10:19]} {[%emt 00:01:06]}
23. Rac1 {[%clk 00:04:19]} {[%emt 00:01:24]} Qxb4 {[%clk 00:10:21]} {[%emt
00:00:03]} 24. Qf6 {[%clk 00:04:14]} {[%emt 00:00:10]} Qe7 {[%clk 00:09:49]}
{[%emt 00:00:37]} 25. Qxc6 {[%clk 00:03:25]} {[%emt 00:00:55]} Bb7 {[%clk
00:09:49]} {[%emt 00:00:05]} 26. Qb5 {[%clk 00:03:05]} {[%emt 00:00:24]} d4+
{[%clk 00:09:34]} {[%emt 00:00:20]} 27. Kg3 {[%clk 00:02:56]} {[%emt 00:00:15]}
Rad8 {[%clk 00:09:25]} {[%emt 00:00:13]} 28. Bc4+ {[%clk 00:02:43]} {[%emt
00:00:19]} Kg7 {[%clk 00:09:22]} {[%emt 00:00:07]} 29. e6 {[%clk 00:01:33]}
{[%emt 00:01:15]} Qd6+ {[%clk 00:09:12]} {[%emt 00:00:15]} 30. Kh4 {[%clk
00:01:02]} {[%emt 00:00:36]} h6 {[%clk 00:06:33]} {[%emt 00:02:42]} 31. Rf1
{[%clk 00:00:18]} {[%emt 00:00:52]} g5+ {[%clk 00:05:49]} {[%emt 00:00:49]} 32.
Kh5 {[%clk 00:00:22]} {[%emt 00:00:01]} Rf8 {[%clk 00:05:33]} {[%emt 00:00:21]}
33. Qb1 {[%clk 00:00:07]} {[%emt 00:00:20]} Kh8 {[%clk 00:04:23]} {[%emt
00:01:13]} 34. Qg6 {[%clk 00:00:10]} {[%emt 00:00:04]} Qe7 {[%clk 00:03:58]}
{[%emt 00:00:29]} 35. Qxh6+ {[%clk 00:00:13]} {[%emt 00:00:03]} Qh7 {[%clk
00:04:02]} 36. Qxh7+ {[%clk 00:00:12]} {[%emt 00:00:07]} Kxh7 {[%clk 00:04:04]}
{[%emt 00:00:01]} 37. e7 {[%clk 00:00:14]} {[%emt 00:00:04]} Rxf1 {[%clk
00:04:07]} {[%emt 00:00:01]} 38. exd8=Q {[%clk 00:00:13]} {[%emt 00:00:09]} 1-0

[ePGN "0.1;DGT LiveChess/2.2.7"]

[Event "Open NK Rapid 2025 bord 26-50"]
[Site "Helmond, Netherlands"]
[Date "2025.05.03"]
[Round "1.1"]
[White "Mayer, Teun"]
[Black "Teianu, Sabin"]
[Result "0-1"]
[TimeControl "15 min +5 sec increment"]
[BlackFideId "1095846"]
[WhiteElo "1740"]
[BlackElo "2089"]

1. d3 {[%clk 00:15:06]} {[%emt 00:00:03]} d5 {[%clk 00:15:01]} {[%emt
00:00:09]} 2. Nf3 {[%clk 00:15:09]} {[%emt 00:00:02]} Nf6 {[%clk 00:15:05]}
{[%emt 00:00:02]} 3. g3 {[%clk 00:15:13]} {[%emt 00:00:01]} g6 {[%clk
00:15:05]} {[%emt 00:00:06]} 4. Bg2 {[%clk 00:15:16]} {[%emt 00:00:01]} Bg7
{[%clk 00:15:09]} 5. O-O {[%clk 00:15:05]} {[%emt 00:00:16]} O-O {[%clk
00:15:11]} {[%emt 00:00:03]} 6. a3 {[%clk 00:15:01]} {[%emt 00:00:09]} c6
{[%clk 00:15:03]} {[%emt 00:00:13]} 7. c3 {[%clk 00:14:59]} {[%emt 00:00:07]}
Nbd7 {[%clk 00:15:02]} {[%emt 00:00:05]} 8. d4 {[%clk 00:14:52]} {[%emt
00:00:12]} b6 {[%clk 00:14:58]} {[%emt 00:00:10]} 9. Bf4 {[%clk 00:14:50]}
{[%emt 00:00:07]} Bb7 {[%clk 00:15:01]} {[%emt 00:00:02]} 10. Nbd2 {[%clk
00:14:43]} {[%emt 00:00:12]} Nh5 {[%clk 00:15:04]} {[%emt 00:00:01]} 11. Bg5
{[%clk 00:14:15]} {[%emt 00:00:33]} h6 {[%clk 00:14:43]} {[%emt 00:00:27]} 12.
Be3 {[%clk 00:14:12]} {[%emt 00:00:08]} Nhf6 {[%clk 00:14:46]} {[%emt
00:00:02]} 13. Nb3 {[%clk 00:13:58]} {[%emt 00:00:19]} Re8 {[%clk 00:14:40]}
{[%emt 00:00:12]} 14. Re1 {[%clk 00:13:30]} {[%emt 00:00:32]} Ng4 {[%clk
00:14:05]} {[%emt 00:00:40]} 15. Qc1 {[%clk 00:12:59]} {[%emt 00:00:36]} Nxe3
{[%clk 00:14:06]} {[%emt 00:00:04]} 16. Qxe3 {[%clk 00:13:00]} {[%emt
00:00:03]} e5 {[%clk 00:14:07]} {[%emt 00:00:05]} 17. dxe5 {[%clk 00:12:42]}
{[%emt 00:00:23]} Nxe5 {[%clk 00:14:08]} {[%emt 00:00:04]} 18. Nxe5 {[%clk
00:12:41]} {[%emt 00:00:05]} Rxe5 {[%clk 00:14:10]} {[%emt 00:00:03]} 19. Qd2
{[%clk 00:12:40]} {[%emt 00:00:07]} Qc7 {[%clk 00:13:56]} {[%emt 00:00:19]} 20.
Nd4 {[%clk 00:12:37]} {[%emt 00:00:07]} Rd8 {[%clk 00:13:54]} {[%emt 00:00:07]}
21. e3 {[%clk 00:12:18]} {[%emt 00:00:25]} a6 {[%clk 00:13:49]} {[%emt
00:00:09]} 22. Qc2 {[%clk 00:12:04]} {[%emt 00:00:20]} Re7 {[%clk 00:13:28]}
{[%emt 00:00:25]} 23. e4 {[%clk 00:11:29]} {[%emt 00:00:40]} dxe4 {[%clk
00:13:14]} {[%emt 00:00:19]} 24. Rxe4 {[%clk 00:11:24]} {[%emt 00:00:11]} Red7
{[%clk 00:12:39]} {[%emt 00:00:40]} 25. Rae1 {[%clk 00:10:53]} {[%emt
00:00:36]} Bxd4 {[%clk 00:10:52]} {[%emt 00:01:53]} 26. cxd4 {[%clk 00:10:25]}
{[%emt 00:00:32]} Rxd4 {[%clk 00:10:13]} {[%emt 00:00:43]} 27. Re8+ {[%clk
00:09:50]} {[%emt 00:00:41]} Rxe8 {[%clk 00:09:47]} {[%emt 00:00:31]} 28. Rxe8+
{[%clk 00:09:52]} {[%emt 00:00:02]} Kh7 {[%clk 00:09:51]} {[%emt 00:00:02]} 29.
Qc3 {[%clk 00:09:06]} {[%emt 00:00:51]} c5 {[%clk 00:09:39]} {[%emt 00:00:17]}
30. Bxb7 {[%clk 00:08:32]} {[%emt 00:00:39]} Qxb7 {[%clk 00:09:41]} {[%emt
00:00:02]} 31. h4 {[%clk 00:08:27]} {[%emt 00:00:10]} Rd1+ {[%clk 00:09:38]}
{[%emt 00:00:08]} 32. Re1 {[%clk 00:08:30]} {[%emt 00:00:03]} Rxe1+ {[%clk
00:09:41]} {[%emt 00:00:01]} 33. Qxe1 {[%clk 00:08:32]} {[%emt 00:00:02]} Qd7
{[%clk 00:09:34]} {[%emt 00:00:14]} 34. Qe2 {[%clk 00:07:56]} {[%emt 00:00:41]}
b5 {[%clk 00:09:27]} {[%emt 00:00:12]} 35. Qc2 {[%clk 00:07:47]} {[%emt
00:00:13]} Qd4 {[%clk 00:08:59]} {[%emt 00:00:33]} 36. h5 {[%clk 00:07:26]}
{[%emt 00:00:26]} c4 {[%clk 00:08:28]} {[%emt 00:00:37]} 37. hxg6+ {[%clk
00:07:26]} {[%emt 00:00:05]} fxg6 {[%clk 00:08:32]} {[%emt 00:00:01]} 38. Qe2
{[%clk 00:06:47]} {[%emt 00:00:43]} Qd7 {[%clk 00:08:16]} {[%emt 00:00:21]} 39.
Qc2 {[%clk 00:06:42]} {[%emt 00:00:11]} Qd3 {[%clk 00:06:39]} {[%emt 00:01:42]}
40. Qxd3 {[%clk 00:06:38]} {[%emt 00:00:09]} cxd3 {[%clk 00:06:42]} {[%emt
00:00:02]} 41. Kf1 {[%clk 00:06:41]} {[%emt 00:00:01]} h5 {[%clk 00:06:46]}
{[%emt 00:00:02]} 42. Ke1 {[%clk 00:06:44]} {[%emt 00:00:01]} g5 {[%clk
00:06:50]} 43. Kd2 {[%clk 00:06:48]} h4 {[%clk 00:06:54]} 44. gxh4 {[%clk
00:06:33]} {[%emt 00:00:21]} gxh4 {[%clk 00:06:57]} {[%emt 00:00:01]} 45. Kxd3
{[%clk 00:06:36]} {[%emt 00:00:02]} h3 {[%clk 00:06:59]} {[%emt 00:00:04]} 46.
Kd4 {[%clk 00:06:28]} {[%emt 00:00:13]} h2 {[%clk 00:07:02]} {[%emt 00:00:01]}
47. Kc5 {[%clk 00:06:32]} {[%emt 00:00:02]} h1=Q {[%clk 00:07:04]} {[%emt
00:00:03]} 48. Kb6 {[%clk 00:06:36]} {[%emt 00:00:01]} Qh6+ {[%clk 00:06:55]}
{[%emt 00:00:13]} 49. Ka5 {[%clk 00:06:36]} {[%emt 00:00:06]} Qf6 {[%clk
00:06:58]} {[%emt 00:00:02]} 50. b4 {[%clk 00:06:34]} {[%emt 00:00:07]} Kg6
{[%clk 00:06:33]} {[%emt 00:00:30]} 0-1